Cogmind - Beta 17 @@@ ROGUE MODE // 2026.07.16 @ 19:59:32 Player: NuclearMayhem Result: Destroyed by G-67 Veteran with Plasma Rifle Performance ------------- Evolutions (6) 3000 Regions Visited (11) 2200 Robots Destroyed (79) 395 Value Destroyed (3146) 3146 Prototype IDs (18) 360 Alien Tech Used (0) 0 Bonus (2958) 2958 TOTAL SCORE: 12059 Bonus ------- High Alert Combat Kills 60 Follower Combat Kills 1498 Met Zhirov 300 Built Enhanced Grunts 300 Met R17 at Cetus 500 Read Decrypted Archives 300 Cogmind --------- Core Integrity 0/1150 Matter 270/300 Energy 97/100 System Corruption 10% Temperature Cool (21) Movement Core (50) Location -4/Factory Parts ------- > --- POWER (3) -------- (None) > --- PROPULSION (5) --- (None) > --- UTILITY (9) ------ Advanced Targeting Computer > --- WEAPON (2) ------- (None) > --- INVENTORY (5) ---- Cloaking Device Advanced Trap Extractor (0/8) Peak State ------------ > --- POWER ------------ Quantum Reactor > --- PROPULSION ------- Centrium Heavy Treads Flexi-carbon Leg Enhanced Flexi-carbon Leg Enhanced Flexi-carbon Leg > --- UTILITY ---------- Advanced Heat Sink Advanced Heat Sink Advanced Heat Sink Advanced Heat Sink Advanced Energy Well Advanced Energy Well Layered Medium Armor Plating Centrium Medium Armor Plating Experimental Thermal Shield > --- WEAPON ----------- Neutron Cannon Advanced KE Penetrator > --- INVENTORY -------- Neutrino Core Antimatter Reactor Flexi-carbon Leg Cloaking Device Advanced Trap Extractor [Rating: 122] Favorites ----------- Power Neutrino Core Engine Ion Engine Power Core Neutrino Core Reactor Quantum Reactor Propulsion Nuclear Pulse Thruster Treads Centrium Heavy Treads Leg Carbon-fiber Leg Flight Unit Nuclear Pulse Thruster Utility Improved System Shield Device Advanced Heat Sink Storage Medium Storage Unit Processor Advanced Signal Interpreter Hackware Improved System Shield Protection Improved Medium Armor Plating Weapon Power Sword Energy Gun EM Shotgun Energy Cannon Neutron Cannon Ballistic Gun Autogun Ballistic Cannon Magnetic Acceleration Cannon Special Weapon Remote Datajack Slashing Weapon Power Sword Special Melee Weapon Improved Datajack Build | -11 -10 -9 -8 -7 -6 -5 -5 -5 -5 -5 -4 ------- Run | Yrd Mat Mat Mat Fac Fac Fac Ext Cet Arc Hub Fac Slots Evolved 12 | . . 2 2 2 2 2 . . . . 2 Power 2 | . . . . . . . . . . . 2 Propulsion 3 | . . 2 1 . . . . . . . . Utility 7 | . . . 1 2 2 2 . . . . . Weapon . | . . . . . . . . . . . . Parts Attached 151 | 6 3 13 5 4 26 16 36 30 1 . 11 Power 19 | 1 . 1 . 1 5 2 4 1 . . 4 Engine 6 | 1 . 1 . 1 2 . 1 . . . . Core 9 | . . . . . 2 2 3 . . . 2 Reactor 4 | . . . . . 1 . . 1 . . 2 Propulsion 54 | 2 1 6 2 . 8 4 20 9 . . 2 Treads 3 | . . 1 . . . . . 2 . . . Leg 32 | 2 1 1 . . . . 20 7 . . 1 Wheel . | . . . . . . . . . . . . Hover . | . . . . . . . . . . . . Flight 19 | . . 4 2 . 8 4 . . . . 1 Utility 54 | 1 . 2 2 2 8 10 10 16 . . 3 Device 25 | . . 1 1 1 1 7 2 11 . . 1 Storage 4 | 1 . 1 . . . . . 2 . . . Processor 6 | . . . 1 1 3 . . . . . 1 Hackware 8 | . . . . . 4 3 . 1 . . . Protection 11 | . . . . . . . 8 2 . . 1 Artifact . | . . . . . . . . . . . . Weapon 24 | 2 2 4 1 1 5 . 2 4 1 . 2 Energy Gun 6 | . 2 . . . . . 1 2 . . 1 Energy Cannon 2 | . . . . . . . . 1 1 . . Ballistic Gun 5 | 2 . 2 . . . . . 1 . . . Ballistic Cannon 1 | . . . . . . . 1 . . . . Launcher . | . . . . . . . . . . . . Special Weapon 1 | . . . . . 1 . . . . . . Impact Weapon . | . . . . . . . . . . . . Slashing Weapon 5 | . . 2 1 . 2 . . . . . . Piercing Weapon . | . . . . . . . . . . . . Special Melee Weapon 4 | . . . . 1 2 . . . . . 1 Unidentified Prototypes 12 | . . . . . 3 . . 8 . . 1 Parts Lost 69 | . . . . . . 12 15 18 6 1 17 Power 7 | . . . . . . 1 1 1 1 . 3 Propulsion 27 | . . . . . . 5 6 9 1 . 6 Utility 25 | . . . . . . 5 7 4 3 . 6 Weapon 10 | . . . . . . 1 1 4 1 1 2 Highest Loss Streak 14 | . . . . . . 6 4 14 6 1 13 To Critical Strikes . | . . . . . . . . . . . . Average Backups 7 | . 5 6 7 9 9 6 8 5 5 4 2 Power 1 | . 1 1 1 1 . . 2 1 2 2 . Propulsion 2 | . 1 2 1 2 4 2 1 . 1 . . Utility 2 | . . . 2 3 3 3 4 2 2 2 2 Weapon . | . 2 3 2 2 . . . . . . . Tool/Special . | . . . . . . . . . . . . Unused Backups 27 | . . 8 . . 11 3 2 2 . . 1 Power 1 | . . . . . 1 . . . . . . Propulsion 9 | . . 1 . . 5 1 2 . . . . Utility 10 | . . 1 . . 5 2 . 1 . . 1 Weapon 6 | . . 6 . . . . . . . . . Tool/Special 1 | . . . . . . . . 1 . . . Average Slot Usage (%) 85 | . 84 83 97 94 99 92 87 74 90 63 49 Engine 3 | . 14 11 9 7 4 . . . . . . Core 2 | . . . . . 1 4 4 . . . 2 Leg 9 | . 28 7 . . . . 23 12 16 16 9 Flight 17 | . . 31 43 38 33 26 4 . . . . Device 12 | . . 8 9 11 10 16 7 26 27 17 10 Storage 6 | . 14 11 9 7 6 5 5 2 11 11 6 Processor 4 | . . . 8 12 9 5 5 . . . 4 Hackware 8 | . . . . . 18 21 9 7 . . . Protection 4 | . . . . . . . 14 5 10 5 5 Energy Gun 3 | . 26 . . . . . . 6 . . . Slashing Weapon 4 | . . 7 17 8 6 4 5 . . . . Special Melee Weapon 1 | . . . . 5 2 2 . . . . . Peak Build Rating 122 | 6 9 21 30 37 73 85 79 122 122 86 104 Average Rating 59 | 4 8 16 28 33 66 75 70 85 117 85 66 On Entrance 48 | . 6 9 19 30 37 71 71 53 122 81 79 Avg Prop Armor Cover (%) 9 | . . 8 . . . . . 8 10 14 9 Naked Turns . | . . . . . . . . . . . . Heaviest Build 72 | 10 14 22 20 21 28 32 72 62 65 25 55 Greatest Support 100 | 20 20 30 25 25 35 35 100 88 76 76 80 Greatest Overweight (x) 3 | . . 1 . . . 1 1 3 . . . Average Overweight (x) . | . . . . . . . . . . . . Largest Inventory Capacity 10 | 8 8 10 10 10 10 10 10 10 5 5 5 Average Capacity 8 | 6 8 9 10 10 10 10 10 5 5 5 5 Most Carried 10 | 1 8 10 8 10 10 10 10 10 5 5 3 Average Carried 7 | . 5 6 7 9 9 6 9 5 5 4 2 Final Capacity 10 | 8 8 10 10 10 10 10 10 5 5 5 5 Final Carried 10 | 1 8 6 8 10 10 5 10 5 5 4 2 Class Distribution -------------------- 31% | Scavenger-Mutant 17% | Hacker-Sprinter 16% | Sprinter 13% | Mutant 9% | Hacker-Scout 5% | Hacker-Mutant 3% | Scout Dominant Class ---------------- Mutant | -10/Materials Sprinter | -9/Materials Sprinter | -8/Materials Scout | -7/Factory Hacker-Sprinter | -6/Factory Hacker-Scout | -5/Factory Scavenger-Mutant | -5/Extension Scavenger-Mutant | -5/Cetus Scavenger-Mutant | -5/Archives Scavenger-Mutant | -5/Hub_04(d) Scavenger-Mutant | -4/Factory Resources | -11 -10 -9 -8 -7 -6 -5 -5 -5 -5 -5 -4 ----------- Run | Yrd Mat Mat Mat Fac Fac Fac Ext Cet Arc Hub Fac Matter Collected 2278 | 260 30 224 54 42 374 125 847 310 . . 12 Remotely . | . . . . . . . . . . . . Salvage Created 3764 | . 486 362 54 42 572 262 1463 336 175 . 12 Parts 159 | . 26 22 2 4 19 15 55 10 4 . 2 Haulers Intercepted 7 | . 2 . 1 . 3 1 . . . . . Recyclers Shooed 2 | . . . . . . . 1 . . . 1 Parts Field Recycled . | . . . . . . . . . . . . Retrieved Matter . | . . . . . . . . . . . . Parts Self-Destructed . | . . . . . . . . . . . . Prevented . | . . . . . . . . . . . . Parts Restored . | . . . . . . . . . . . . Kills | -11 -10 -9 -8 -7 -6 -5 -5 -5 -5 -5 -4 ------- Run | Yrd Mat Mat Mat Fac Fac Fac Ext Cet Arc Hub Fac Combat Hostiles Destroyed 56 | . 9 7 . . 5 2 20 5 3 . 5 Melee 30 | . . 3 . . 5 2 15 1 . . 4 Guns 16 | . 6 4 . . . . . 4 2 . . Cannons 6 | . . . . . . . 5 . 1 . . AOE 3 | . 3 . . . . . . . . . . Classes Destroyed 11 | . 6 2 . . 1 . 2 . . . . Builder 3 | . 1 . . . . . 2 . . . . Hauler 7 | . 2 . 1 . 3 1 . . . . . Recycler 2 | . . . . . . . 2 . . . . Operator 5 | . 1 1 . 1 1 . 1 . . . . Watcher 6 | . 1 . . 1 2 1 . 1 . . . Swarmer 11 | . 3 . . . 3 . . . . . 5 Grunt 24 | . 6 4 . . 1 . 10 . 3 . . Brawler 1 | . . 1 . . . . . . . . . Sentry 10 | . . 2 . . . . 8 . . . . Hunter 4 | . . . . . . . 2 2 . . . Programmer 3 | . . . . . 1 2 . . . . . Cetus Guard 3 | . . . . . . . . 3 . . . Best Kill Streak 7 | . 7 5 1 1 3 2 6 2 3 . 5 Combat Bots Only 6 | . 2 4 . . 3 2 6 2 3 . 5 Max Kills in Single Turn 2 | . 2 1 1 1 1 1 1 1 1 . 1 Gunslinging . | . . . . . . . . . . . . Exploded 2 | . 2 . . . . . . . . . . Melee 1 | . . 1 . . 1 1 1 1 . . 1 Uniques/NPCs Destroyed . | . . . . . . . . . . . . Combat | -11 -10 -9 -8 -7 -6 -5 -5 -5 -5 -5 -4 -------- Run | Yrd Mat Mat Mat Fac Fac Fac Ext Cet Arc Hub Fac Hostile Shots Fired 833 | . 30 19 4 . 18 93 203 150 16 7 293 Missed 331 | . 15 8 4 . 8 52 66 41 7 1 129 Hits 502 | . 15 11 . . 10 41 137 109 9 6 164 Melee 1 | . . . . . . 1 . . . . . Projectile 501 | . 15 11 . . 10 40 137 109 9 6 164 AOE 3 | . . . . . . 3 . . . . . Critical Strikes 20 | . . . . . . 4 6 4 . 1 5 Damage Taken 11676 | . 295 145 . . 165 999 2669 2862 1412 143 2986 Core 2139 | . 49 38 . . 32 209 249 324 79 . 1159 Absorbed by Shields 359 | . . . . . . . 309 . . . 50 Reduced by Siege Mode 61 | . . . . . . . . 61 . . . Ignored by Resistances 32 | . . . . . . . . . 32 . . Regen/Repaired (Parts) 150 | . . . 23 . . 127 . . . . . Core Remaining (%) 82 | 100 80 90 100 100 96 . . . . 13 . Volleys Fired 165 | . 30 13 . . 4 . 65 32 10 4 7 Largest 2 | . 2 2 . . 1 . 1 2 2 1 1 Hottest 240 | . 90 46 . . 5 . 44 240 125 90 88 Shots Fired 222 | . 60 26 . . 4 . 65 43 13 5 6 Gun 144 | . 60 26 . . . . . 43 9 . 6 Cannon 74 | . . . . . . . 65 . 4 5 . Launcher . | . . . . . . . . . . . . Special 4 | . . . . . 4 . . . . . . Kinetic 100 | . . 26 . . . . 65 . 9 . . Thermal 58 | . . . . . . . . 43 4 5 6 Explosive . | . . . . . . . . . . . . Electromagnetic 60 | . 60 . . . . . . . . . . Robot Hit Streak 10 | . 7 4 . . 7 . 9 10 3 . 4 Robot Miss Streak 4 | . 4 4 . . 1 . 4 2 2 . 1 Penetration Max 1 | . . . . . . . . . 1 . . Secondary Targets 1 | . . 1 . . . . . . . . . Max Gunslinging Chain 1 | . . 1 . . . . . . . . . Shots Hit Robots 267 | . 45 19 1 5 36 14 97 37 8 . 5 Core Hits 121 | . 25 11 1 1 11 5 35 15 9 . 8 Critical Kills 1 | . . . . . . . . . 1 . . Critical Parts Destroyed 3 | . . . . . . . . . 2 . 1 Critical Strikes 21 | . . . . 1 6 1 9 . 3 . 1 Destroy 4 | . . . . . . . . . 3 . 1 Blast 2 | . . . . . . . 2 . . . . Sever 15 | . . . . 1 6 1 7 . . . . Melee Attacks 218 | . . 20 9 20 66 34 62 7 . . . Impact . | . . . . . . . . . . . . Slashing 218 | . . 20 9 20 66 34 62 7 . . . Piercing . | . . . . . . . . . . . . Sneak Attacks 13 | . . . 1 1 4 3 4 . . . . Combat Hostiles 1 | . . . . . . . 1 . . . . Follow-up Attacks . | . . . . . . . . . . . . Damage Inflicted 9951 | . 814 375 70 242 1566 682 4014 1236 520 31 401 Guns 2273 | . 663 238 . . . . . 957 262 . 153 Cannons 1593 | . . . . . . . 1476 . 117 . . Explosions 292 | . 151 . . . . . . . 141 . . Melee 5514 | . . 137 70 242 1566 682 2538 279 . . . Ramming 279 | . . . . . . . . . . 31 248 Kinetic 1976 | . . 238 . . . . 1476 . 262 . . Thermal 1519 | . 151 . . . . . . 957 258 . 153 Explosive . | . . . . . . . . . . . . Electromagnetic 663 | . 663 . . . . . . . . . . Impact . | . . . . . . . . . . . . Slashing 5514 | . . 137 70 242 1566 682 2538 279 . . . Piercing . | . . . . . . . . . . . . Highest Corruption 10 | . . . . . 1 6 7 7 7 7 10 Average Corruption 5 | . . . . . 1 3 6 7 7 7 6 Corruption Purged . | . . . . . . . . . . . . Corruption Blocked . | . . . . . . . . . . . . Effects 73 | . . . . . 1 7 32 20 3 4 6 Message Errors 16 | . . . . . . 2 8 4 . . 2 Matter Fused 15 | . . . . . . . 8 5 1 . 1 Heat Flow Errors 8 | . . . . . 1 1 2 2 1 1 . Energy Discharges 11 | . . . . . . 2 5 3 . 1 . Parts Rejected 1 | . . . . . . . 1 . . . . Parts Fused 1 | . . . . . . . . 1 . . . Data Loss (minor) 11 | . . . . . . 2 5 2 . 1 1 Data Loss (major) 5 | . . . . . . . 2 2 . . 1 Misfires 1 | . . . . . . . . . . 1 . Alerts 2 | . . . . . . . 1 1 . . . Weapon Failures 2 | . . . . . . . . . 1 . 1 Overload Shots 3 | . . . . . . . . 3 . . . Effects 1 | . . . . . . . . 1 . . . Energy Bleed 1 | . . . . . . . . 1 . . . Overflow Damage 395 | . 14 . . 65 210 20 68 . 17 . 1 Projectiles 11 | . . . . . . . 11 . . . . Explosions 31 | . 14 . . . . . . . 17 . . Melee 353 | . . . . 65 210 20 57 . . . 1 Knockbacks 13 | . . . . . . . 13 . . . . Impact . | . . . . . . . . . . . . Kinetic 10 | . . . . . . . 10 . . . . Secondary 3 | . . . . . . . 3 . . . . Self-Inflicted Damage 40 | . 38 . . . . . . . . . 2 Shots 1 | . 1 . . . . . . . . . . Rammed 49 | . . . . . . . . . . . 49 Targets Rammed 70 | . . . . . . . . . . 2 68 Kicked 17 | . . . . . . . . . . 2 15 Crushed 4 | . . . . . . . . . . . 4 Highest Temperature 495 | . 174 9 21 7 335 253 495 334 105 17 26 Average Temperature 78 | . 66 9 6 1 85 68 111 154 57 17 12 Received Heat Transfer 1754 | . 66 63 . . 36 108 626 567 45 45 198 Effects 7 | . . . . . 3 . 4 . . . . Shutdowns 1 | . . . . . . . 1 . . . . Energy Bleed 2 | . . . . . 2 . . . . . . Interference 1 | . . . . . 1 . . . . . . Damage (minor) 1 | . . . . . . . 1 . . . . Damage (major) 2 | . . . . . . . 2 . . . . Siege Activations 1 | . . . . . . . . 1 . . . Total Turns 20 | . . . . . . . . 20 . . . Longest Duration 20 | . . . . . . . . 20 . . . Martial Activations . | . . . . . . . . . . . . Shielding Activations . | . . . . . . . . . . . . Robots Disrupted . | . . . . . . . . . . . . Combat Hostiles . | . . . . . . . . . . . . Robots Corrupted 1 | . . . . . . . . . . . 1 Combat Hostiles 1 | . . . . . . . . . . . 1 Parts Fried 6 | . 5 . . . . . . . . . 1 Impact Corruptions 1 | . . . . . . . . . . . 1 Robots Melted . | . . . . . . . . . . . . Combat Hostiles . | . . . . . . . . . . . . Parts Melted 6 | . . . . . . . 1 5 . . . Heat Transferred 1745 | . 200 . . . . . . 1210 150 . 185 Parts Sabotaged . | . . . . . . . . . . . . Parts Stolen . | . . . . . . . . . . . . Parts Stripped . | . . . . . . . . . . . . Power Chain Reactions 4 | . 3 . . . . . . . 1 . . Alert | -11 -10 -9 -8 -7 -6 -5 -5 -5 -5 -5 -4 ------- Run | Yrd Mat Mat Mat Fac Fac Fac Ext Cet Arc Hub Fac Maximum Alert Level 3 | . . . . . . . 3 1 2 . . Low Security (%) 92 | 100 100 100 100 100 100 100 73 81 52 100 100 Level 1 3 | . . . . . . . 5 18 28 . . Level 2 3 | . . . . . . . 18 . 18 . . Level 3 . | . . . . . . . 1 . . . . Level 4 . | . . . . . . . . . . . . Level 5 . | . . . . . . . . . . . . High Security . | . . . . . . . . . . . . Max Security . | . . . . . . . . . . . . Peak Influence 705 | . 139 120 78 28 100 154 705 388 497 154 93 Initial 388 | . . 40 30 6 . . 70 388 60 131 53 Average 87 | . 83 49 34 5 19 53 190 169 221 136 30 Influence Increases 4102 | . 298 220 136 52 392 519 1482 342 467 39 155 Destroy 0b10 Robot/C 1720 | . 180 140 . . 100 40 720 180 260 . 100 Destroy 0b10 Robot/NC 125 | . 25 5 5 5 25 10 40 10 . . . Destroy Leader 238 | . 36 30 2 2 30 14 94 20 . . 10 Allied During Kill 632 | . . . . . . . 407 75 150 . . Successful Hack 258 | . 15 18 3 6 119 44 14 21 . 18 . Disable Machine 120 | . 15 . 30 . 15 . 15 . 15 15 15 Destroy Structure 259 | . 12 12 6 9 28 36 72 36 42 6 . Partial Spotted 180 | . . 15 30 30 30 60 15 . . . . Lose Combat Pursuer 570 | . 15 . 60 . 45 315 105 . . . 30 Influence Decreases 4095 | . 200 245 194 65 394 376 932 883 242 306 258 Entered New Map 885 | . . 58 43 9 2 . 73 305 92 246 57 Time Decay 2158 | . 200 187 151 56 323 256 429 318 50 50 138 Lost Part 583 | . . . . . . 120 150 180 60 10 63 Lost Ally 430 | . . . . . 30 . 280 80 40 . . Purge Threat 39 | . . . . . 39 . . . . . . Squads Dispatched 23 | . 1 . . 1 7 5 6 2 . . 1 Investigation 8 | . . . . . 2 1 3 2 . . . Extermination 6 | . . . . 1 3 2 . . . . . Reinforcement 8 | . 1 . . . 2 2 2 . . . 1 Assault 1 | . . . . . . . 1 . . . . Garrison . | . . . . . . . . . . . . Intercept . | . . . . . . . . . . . . Searches Triggered . | . . . . . . . . . . . . Construction Impeded . | . . . . . . . . . . . . Haulers Reinforced 2 | . . . . . . 2 . . . . . Active Scanning Responses . | . . . . . . . . . . . . Cargo Convoy Interrupts . | . . . . . . . . . . . . Stealth | -11 -10 -9 -8 -7 -6 -5 -5 -5 -5 -5 -4 --------- Run | Yrd Mat Mat Mat Fac Fac Fac Ext Cet Arc Hub Fac Distress Signals 10 | . 3 . 1 . 1 1 . 2 . 1 1 Communications Jammed . | . . . . . . . . . . . . Distress Signals . | . . . . . . . . . . . . Times Spotted 183 | . 13 8 3 4 15 27 47 12 26 4 24 Peak Tracking Total 14 | . 4 5 4 2 4 8 6 5 13 6 14 Tactical Retreats 19 | . 1 . 2 . 2 9 4 . . . 1 Traps | -11 -10 -9 -8 -7 -6 -5 -5 -5 -5 -5 -4 ------- Run | Yrd Mat Mat Mat Fac Fac Fac Ext Cet Arc Hub Fac Traps Triggered 11 | . 1 . . . 2 1 1 . . 4 2 Indirectly . | . . . . . . . . . . . . Trap Hack Attempts 5 | . . . . . 5 . . . . . . Triggered . | . . . . . . . . . . . . Disarmed . | . . . . . . . . . . . . Reprogrammed 2 | . . . . . 2 . . . . . . Reused . | . . . . . . . . . . . . Traps Extracted . | . . . . . . . . . . . . Installed . | . . . . . . . . . . . . Triggered . | . . . . . . . . . . . . Machines | -11 -10 -9 -8 -7 -6 -5 -5 -5 -5 -5 -4 ---------- Run | Yrd Mat Mat Mat Fac Fac Fac Ext Cet Arc Hub Fac Machines Disabled 8 | . 1 . 2 . 1 . 1 . 1 1 1 Max in Single Turn 1 | . 1 . 1 . 1 . . . 1 1 1 Machines Repaired . | . . . . . . . . . . . . Machines Dismantled . | . . . . . . . . . . . . Machines Sabotaged . | . . . . . . . . . . . . Overloaded Fab Kills . | . . . . . . . . . . . . Hacking | -11 -10 -9 -8 -7 -6 -5 -5 -5 -5 -5 -4 --------- Run | Yrd Mat Mat Mat Fac Fac Fac Ext Cet Arc Hub Fac Machines Accessed 65 | . 3 4 7 3 22 11 8 3 1 1 2 Terminals 40 | . 3 3 4 2 11 4 8 3 . 1 1 Fabricators 4 | . . . . . 2 2 . . . . . Repair Stations 4 | . . . 2 . 1 1 . . . . . Recycling Units 7 | . . . 1 . 4 1 . . . . 1 Scanalyzers 7 | . . 1 . 1 3 2 . . . . . Garrison Access 2 | . . . . . 1 1 . . . . . Total Hacks 326 | . 8 27 23 9 122 70 21 15 25 2 4 Successful 186 | . 4 19 12 3 70 43 5 4 25 1 . Failed 139 | . 4 8 11 6 51 27 16 11 . 1 4 Catastrophic 16 | . . 1 . . 4 2 5 3 . . 1 Database Lockouts 1 | . . . . . 1 . . . . . . Manual 130 | . 8 16 15 7 49 30 . 1 . 2 2 Terminals 181 | . 8 16 14 7 72 24 21 15 . 2 2 Fabricators 18 | . . . . . 8 10 . . . . . Repair Stations 16 | . . . 6 . 2 8 . . . . . Recycling Units 16 | . . . 3 . 9 2 . . . . 2 Scanalyzers 55 | . . 11 . 2 25 17 . . . . . Garrison Access 15 | . . . . . 6 9 . . . . . Terminal Hacks 71 | . 2 1 . . 27 6 5 4 25 1 . Record 29 | . . . . . . . . 4 25 . . Part Schematic 10 | . . . . . 8 2 . . . . . Robot Schematic 1 | . . . . . 1 . . . . . . Robot Analysis 6 | . 2 . . . 3 1 . . . . . Prototype ID Bank 2 | . . . . . 2 . . . . . . Open Door 5 | . . . . . . . 5 . . . . Level Access Points 2 | . . . . . 1 . . . . 1 . Branch Access Points 1 | . . . . . 1 . . . . . . Terminal Index 3 | . . . . . 2 1 . . . . . Scanalyzer Index 1 | . . 1 . . . . . . . . . Alert Level 2 | . . . . . 2 . . . . . . Unreport Threat 2 | . . . . . 2 . . . . . . Hauler Manifests 2 | . . . . . 1 1 . . . . . Registered Components 1 | . . . . . 1 . . . . . . Zone Layout 4 | . . . . . 3 1 . . . . . Fabricator Hacks 6 | . . . . . 1 5 . . . . . Network Status 1 | . . . . . . 1 . . . . . Load Schematic 3 | . . . . . 1 2 . . . . . Build 2 | . . . . . . 2 . . . . . Repair Station Hacks 12 | . . . 4 . 1 7 . . . . . Scan Component 8 | . . . 3 . 1 4 . . . . . Repair 4 | . . . 1 . . 3 . . . . . Recycling Unit Hacks 6 | . . . 2 . 4 . . . . . . Retrieve Components 6 | . . . 2 . 4 . . . . . . Scanalyzer 42 | . . 11 . . 17 14 . . . . . Insert Component 17 | . . 4 . . 7 6 . . . . . Analyze 15 | . . 4 . . 6 5 . . . . . Retrieve Study 10 | . . 3 . . 4 3 . . . . . Garrison Access Hacks . | . . . . . . . . . . . . Unauthorized Hacks 49 | . 2 7 6 3 20 11 . . . . . Terminals 34 | . 2 7 5 3 11 6 . . . . . Track 2 | . . 1 . . 1 . . . . . . Assimilate 2 | . . . . 1 1 . . . . . . Botnet 21 | . 1 3 4 1 8 4 . . . . . Operators 8 | . 1 2 1 1 1 2 . . . . . Skim 1 | . . 1 . . . . . . . . . Fabricators 2 | . . . . . 1 1 . . . . . Prioritize 1 | . . . . . . 1 . . . . . Recompile 1 | . . . . . 1 . . . . . . Repair Stations . | . . . . . . . . . . . . Recycling Units 5 | . . . 1 . 4 . . . . . . Monitor 1 | . . . . . 1 . . . . . . Reject 1 | . . . . . 1 . . . . . . Recyclers 2 | . . . 1 . 1 . . . . . . Mask 1 | . . . . . 1 . . . . . . Scanalyzers . | . . . . . . . . . . . . Garrison Access 8 | . . . . . 4 4 . . . . . Broadcast 2 | . . . . . 1 1 . . . . . Decoy 2 | . . . . . 1 1 . . . . . Intercept 2 | . . . . . 1 1 . . . . . Watchers 2 | . . . . . 1 1 . . . . . Data Cores Recovered 1 | . . 1 . . . . . . . . . Used . | . . . . . . . . . . . . Hacking Detections 53 | . 3 4 7 3 18 9 5 2 . . 2 Full Trace Events 7 | . . . . . 1 1 3 2 . . . Feedback Events . | . . . . . . . . . . . . Feedback Blocked 1 | . . . . . . . . 1 . . . Robot Schematics Acquired 1 | . . . . . 1 . . . . . . Robots Built . | . . . . . . . . . . . . Authchips . | . . . . . . . . . . . . Time . | . . . . . . . . . . . . Total Robot Build Rating . | . . . . . . . . . . . . Part Schematics Acquired 25 | . . 4 . . 14 7 . . . . . Parts Built 4 | . . . . . . 4 . . . . . Authchips 1 | . . . . . . 1 . . . . . Time 76 | . . . . . . 76 . . . . . Total Part Build Rating 22 | . . . . . . 22 . . . . . Part Studies Acquired 9 | . . 2 . . 4 3 . . . . . Parts Repaired 4 | . . . 1 . . 3 . . . . . Time 214 | . . . 38 . . 176 . . . . . Parts Recycled . | . . . . . . . . . . . . Recycled Matter . | . . . . . . . . . . . . Retrieved Matter . | . . . . . . . . . . . . Retrieved Components 21 | . . . . . 21 . . . . . . Parts Scanalyzed 15 | . . 4 . . 6 5 . . . . . Part Schematics Acquired 15 | . . 4 . . 6 5 . . . . . Parts Damaged 4 | . . . . . 1 3 . . . . . Bothacking | -11 -10 -9 -8 -7 -6 -5 -5 -5 -5 -5 -4 ------------ Run | Yrd Mat Mat Mat Fac Fac Fac Ext Cet Arc Hub Fac Used RIF Installer . | . . . . . . . . . . . . Robots Hacked . | . . . . . . . . . . . . Non-combat . | . . . . . . . . . . . . Combat . | . . . . . . . . . . . . Robot Hacks Applied . | . . . . . . . . . . . . Relay Couplers Released . | . . . . . . . . . . . . Fabnet Peak Effective % . | . . . . . . . . . . . . Robots Rewired 17 | . . . . . 2 . 15 . . . . Allies Hacked . | . . . . . . . . . . . . Hacks Repelled . | . . . . . . . . . . . . Allies | -11 -10 -9 -8 -7 -6 -5 -5 -5 -5 -5 -4 -------- Run | Yrd Mat Mat Mat Fac Fac Fac Ext Cet Arc Hub Fac Total Allies 29 | . . . . 1 3 . 20 5 . . . Largest Group 8 | . . . . . 2 . 8 5 3 . . Highest-Rated Group 480 | . . . . . 72 . 364 480 288 . . Highest-Rated Ally 159 | . . . . . 40 . 159 119 96 . . Total Orders . | . . . . . . . . . . . . Ally Attacks 288 | . . . . . 1 . 205 49 33 . . Total Damage 7625 | . . . . . 30 . 4273 1745 1577 . . Kills 37 | . . . . . . . 19 7 11 . . Allies Corrupted . | . . . . . . . . . . . . Allies Melted . | . . . . . . . . . . . . Intel | -11 -10 -9 -8 -7 -6 -5 -5 -5 -5 -5 -4 ------- Run | Yrd Mat Mat Mat Fac Fac Fac Ext Cet Arc Hub Fac Active Infowar (turns) 3298 | . . . 330 255 993 909 811 . . . . Optics 232 | . . . . 170 62 . . . . . . Sensors 3277 | . . . 330 255 993 888 811 . . . . Terrain 2 | . . . . . . . 2 . . . . Traps 595 | . . . . . . 595 . . . . . Jamming 25 | . . . . . . 25 . . . . . Robot Analysis Total 6 | . 2 . . . 3 1 . . . . . Derelict Logs Recovered . | . . . . . . . . . . . . Drone Launches . | . . . . . . . . . . . . Drone Recoveries . | . . . . . . . . . . . . Exploration | -11 -10 -9 -8 -7 -6 -5 -5 -5 -5 -5 -4 ------------- Run | Yrd Mat Mat Mat Fac Fac Fac Ext Cet Arc Hub Fac Turns Passed 5971 | 53 492 441 336 255 993 955 1064 718 101 104 459 Spaces Moved 7151 | 39 325 307 456 516 2409 1566 637 363 62 75 396 Core 88 | 5 . . . . . . . 1 . . 82 Treads 114 | . . . . . . . . 90 . . 24 Legs 1386 | 34 325 55 . . . . 412 272 62 75 151 Wheels . | . . . . . . . . . . . . Hover . | . . . . . . . . . . . . Flight 5563 | . . 252 456 516 2409 1566 225 . . . 139 Fastest Speed 23 | 50 120 26 23 23 23 28 28 120 120 120 40 Average Speed 49 | 111 120 43 23 23 27 29 88 153 120 120 79 Slowest Speed 260 | 120 120 190 24 23 31 114 190 260 120 120 160 Overloaded Moves . | . . . . . . . . . . . . Propulsion Burnouts . | . . . . . . . . . . . . Robots Hopped 37 | . . 5 . 6 7 16 1 . . . 2 Potential Cave-ins . | . . . . . . . . . . . . Cave-ins Triggered . | . . . . . . . . . . . . Exploration Rate (%) 40 | 4 62 19 38 18 65 37 70 70 81 11 12 Regions Visited 11 Branch Regions 4 Pre-discovered Areas . | . . . . . . . . . . . . Known Exits Taken 6 | . . . 1 1 1 1 1 . . 1 . Unknown Exits Taken 5 | 1 1 1 . . . . . 1 1 . . Scrap Searched . | . . . . . . . . . . . . Spaces Dug 77 | . . 12 6 9 28 18 1 . . 3 . Terrain Destroyed 111 | . 10 12 6 9 28 18 14 1 9 4 . Melee 74 | . . 12 6 9 28 18 1 . . . . Projectile 20 | . . . . . . . 13 1 2 4 . AOE 17 | . 10 . . . . . . . 7 . . Terrain Rammed . | . . . . . . . . . . . . Walls Destroyed . | . . . . . . . . . . . . Machines Disabled . | . . . . . . . . . . . . Actions | -11 -10 -9 -8 -7 -6 -5 -5 -5 -5 -5 -4 --------- Run | Yrd Mat Mat Mat Fac Fac Fac Ext Cet Arc Hub Fac Total 9008 | 45 366 562 669 615 2670 1992 978 462 73 83 493 Wait 986 | . 1 186 195 78 72 375 64 15 . . . Move 7069 | 38 324 297 455 503 2395 1533 634 362 61 75 392 Hop 35 | . . 4 . 6 6 16 1 . . . 2 Pick Up 64 | 1 6 7 2 2 27 7 9 3 . . . Fast Attach 110 | 6 2 11 3 3 17 6 24 26 1 2 9 Attach 25 | . . 2 2 1 2 11 3 1 . 1 2 Detach 8 | . . 2 1 1 . 2 2 . . . . Swap 41 | . 1 1 2 . 14 3 15 5 . . . Drop 120 | . 2 19 . 1 53 5 25 11 1 . 3 Fire 165 | . 30 13 . . 4 . 65 32 10 4 7 Melee 218 | . . 20 9 20 66 34 62 7 . . . Ram 2 | . . . . . . . . . . . 2 Kick 16 | . . . . . . . . . . 1 15 Crush 51 | . . . . . . . . . . . 51 Escape Stasis 10 | . . . . . . . . . . . 10 Rewire 83 | . . . . . 9 . 74 . . . . Trap 5 | . . . . . 5 . . . . . . Miscellaneous . | . . . . . . . . . . . . Route ------- -11/Scrapyard -10/Materials (discovered 2 exits: *Mat x2) -9/Materials -8/Materials -7/Factory (discovered 2 exits: *Fac / [*Low]) -6/Factory (discovered 6 exits: *Fac x4 / *Low x2) -5/Factory -5/Extension (discovered 2 exits: *Fac / *Cet) -5/Cetus (discovered 2 exits: *Fac / *Arc) -5/Archives -5/Hub_04(d) (discovered 4 exits: *Fac x4) -4/Factory History --------- Turn | Location | Event 7 | -11/Scrapyard | Discovered new exit (range 14) 54 | -11/Scrapyard | Entered Materials 171 | -10/Materials | Discovered new exit (range 15) 301 | -10/Materials | Build established: Mutant 489 | -10/Materials | Discovered new exit (range 16) 546 | -10/Materials | Entered another Materials area 546 | -9/Materials | Evolved 2 slots: Propulsion x2 929 | -9/Materials | Build established: Sprinter 981 | -9/Materials | Discovered new exit (range 9) 987 | -9/Materials | Entered another Materials area 987 | -8/Materials | Evolved 2 slots: Propulsion x1, Utility x1 1036 | -8/Materials | Repaired Cesium-ion Thruster 1304 | -8/Materials | Discovered new exit (range 4) 1323 | -8/Materials | Identified exit to Factory 1323 | -8/Materials | Entered Factory 1323 | -7/Factory | Evolved 2 slots: Utility x2 1519 | -7/Factory | Discovered new exit (range 13) 1575 | -7/Factory | Discovered new exit (range 15) 1576 | -7/Factory | Identified exit to Factory 1578 | -7/Factory | Entered another Factory area 1578 | -6/Factory | Evolved 2 slots: Utility x2 1896 | -6/Factory | Spotted B-75 Beast 1926 | -6/Factory | Central database locked down 1926 | -6/Factory | Identified exit to Lower Caves 1963 | -6/Factory | Discovered new exit (range 9) 1982 | -6/Factory | Allied Derelicts emerged from ambush trap array 2001 | -6/Factory | Identified exit to Factory 2133 | -6/Factory | Build established: Hacker-Sprinter 2360 | -6/Factory | Watched by a mysterious "MATRIX" hacker 2571 | -6/Factory | Entered another Factory area 2571 | -5/Factory | Evolved 2 slots: Utility x2 2876 | -5/Factory | Build established: Hacker-Scout 2919 | -5/Factory | Repaired Adv. Trap Extractor 2990 | -5/Factory | Repaired Broken Nuclear Pulse Thruster+? 3200 | -5/Factory | Lost 6 parts (1p2n3u) 3329 | -5/Factory | Repaired Power Sword+ 3383 | -5/Factory | Lost 4 parts (3n1u) 3451 | -5/Factory | Fabricated Adv. Trap Extractor (x2) 3478 | -5/Factory | Fabricated Nuclear Pulse Thruster (x2) 3519 | -5/Factory | Discovered new exit (range 15) 3525 | -5/Factory | Identified exit to Extension 3526 | -5/Factory | Entered Extension 3574 | -5/Extension | Rescued a captive Derelict 3636 | -5/Extension | Rescued A7 3645 | -5/Extension | Rescued a captive Derelict 3652 | -5/Extension | Lost 3 allies 3699 | -5/Extension | Lost 3 parts (2n1u) 3702 | -5/Extension | Lost 3 allies 3891 | -5/Extension | Spotted B-75 Beast 3946 | -5/Extension | Spotted B-75 Beast 3968 | -5/Extension | Allies destroyed B-75 Beast 4007 | -5/Extension | Lost 6 allies 4011 | -5/Extension | Allies destroyed B-75 Beast 4200 | -5/Extension | Build established: Scavenger-Mutant 4234 | -5/Extension | Rescued a captive Derelict 4252 | -5/Extension | Rescued a captive Derelict 4426 | -5/Extension | First assault squad dispatched 4455 | -5/Extension | Lost 4 parts (1p2n1u) 4495 | -5/Extension | Lost 3 allies 4551 | -5/Extension | Discovered new exit (range 10) 4552 | -5/Extension | Discovered new exit (range 6) 4562 | -5/Extension | Identified exit to Cetus 4590 | -5/Extension | Entered Cetus 4590 | -5/Cetus | Accompanied by 4 allies (A7) 4595 | -5/Cetus | Acquired a Cetus Manufacturing Module code from A7 4606 | -5/Cetus | Spotted Cetus Guard 4606 | -5/Cetus | Spotted Cetus Guard 4610 | -5/Cetus | Spotted Cetus Guard 4610 | -5/Cetus | Extracted ID and sensor layout for unrecognized location from A7's data core 4611 | -5/Cetus | Spotted Cetus Guard 4633 | -5/Cetus | Core integrity fell below 50% 4640 | -5/Cetus | Destroyed Cetus Guard 4662 | -5/Cetus | Lost 4 allies 4676 | -5/Cetus | Destroyed Cetus Guard 4696 | -5/Cetus | Destroyed Cetus Guard 4726 | -5/Cetus | Lost 14 parts (1p8n3u2w) 4904 | -5/Cetus | Started Cetus Manufacturing Module 4929 | -5/Cetus | Manufactured an Enhanced Grunt 4954 | -5/Cetus | Manufactured an Enhanced Grunt 4979 | -5/Cetus | Manufactured an Enhanced Grunt 5004 | -5/Cetus | Manufactured an Enhanced Grunt 5029 | -5/Cetus | Manufactured an Enhanced Grunt 5077 | -5/Cetus | Discovered new exit (range 15) 5114 | -5/Cetus | Spotted Cetus Guard 5114 | -5/Cetus | Spotted Cetus Guard 5117 | -5/Cetus | Spotted Cetus Guard 5117 | -5/Cetus | Spotted Cetus Guard 5123 | -5/Cetus | Allies destroyed Cetus Guard 5138 | -5/Cetus | Allies destroyed Cetus Guard 5145 | -5/Cetus | Allies destroyed Cetus Guard 5156 | -5/Cetus | Lost 3 parts (1u2w) 5164 | -5/Cetus | Found Prototype Device 5164 | -5/Cetus | Identified Exp. Thermal Shield 5170 | -5/Cetus | Discovered new exit (range 16) 5176 | -5/Cetus | Met Revision 17 5308 | -5/Cetus | Entered Archives 5308 | -5/Archives | Accompanied by 3 allies 5326 | -5/Archives | Met Zhirov 5332 | -5/Archives | Reinforcements dispatched to Archives 5344 | -5/Archives | Read partially decrypted archive contents 5348 | -5/Archives | Discovered new exit (range 16) 5377 | -5/Archives | Reinforcements dispatched to Archives 5379 | -5/Archives | Zhirov warped through subspace 5393 | -5/Archives | Core integrity fell below 20% 5397 | -5/Archives | Zhirov detonated Archives 5409 | -5/Archives | Entered Hub_04(d) 5419 | -5/Hub_04(d) | Identified exit to Factory 5423 | -5/Hub_04(d) | Lost 3 allies 5428 | -5/Hub_04(d) | Lost 6 parts (1p1n3u1w) 5513 | -5/Hub_04(d) | Entered Factory 5513 | -4/Factory | Evolved 2 slots: Power x2 5877 | -4/Factory | Core integrity fell below 50% 5888 | -4/Factory | Lost 13 parts (3p5n5u) 5933 | -4/Factory | System corruption reached 10% 5960 | -4/Factory | Core integrity fell below 20% 5972 | -4/Factory | Destroyed by G-67 Veteran with Plasma Rifle Last Messages --------------- 05949_ System corrupted: Matter fused (-5). 05949_ Slug penetrates Wall. 05950_ M-13 Machinist repairs H-77 Assassin Imp. Phase Shifter. 05951_ Adv. Datajack destroyed. 05952_ Slug penetrates Wall. 05952_ Penetrated by Slug. 05952_ Slug penetrates Wall. 05952_ Dispersion Rifle destroyed. 05956_ Slug penetrates M-13 Machinist. 05956_ M-13 Machinist destroyed. 05956_ Slug penetrates Wall. 05959_ Slug penetrates H-77 Assassin. 05959_ Slug penetrates Door. 05959_ Slug penetrates Wall. 05959_ Nuclear Pulse Array destroyed. 05959_ Penetrated by Slug. 05962_ Slug penetrates Wall. 05964_ Penetrated by Slug. [Achievement: I Think I Know What's Going On] Map ----- +----------------------------------------------------+ | + * "" #???????????????????????????????????? | | # #???????????????????????????????????? | | # #???????????????????????????????????? | | # """"""""" #???????????????????????????????????? | | # #???????????????????????????????????? | | # """"""""" #???????????????????????????????????? | | # #???????????????????????????????????? | | # """""""""?????????????????????????????????????? | | # ????????????????????????????????????????? | | ######???????????#???????????????????????????????? | | #???????????????? ???????????????????????????????? | | #???????????????? ???????????????????????????????? | | #???????????????" ???????????????????????????????? | | #?????????? ????" #??????????????????????????????? | | #???#?????# ???? #??????????????????????????????? | | ###+####### ?? #??????????????????????????????? | | # [ # ?"""" #??????????????????????????????? | | # # """"" #??????????????????????????????? | | # # """ #??????????#???????????????????? | | # """ "" # #????????? #???????????????????? | | # """ """ # """"" #????????? #???????????????????? | | " """ R" # """"" #???????? #???????????????????? | | # """ # """ #???????? #???????????????????? | | # # !#??????? ????????????????????? | | "###########+####;########;### #???????????? | | @ #???????????? | | w #???????????? | | m +???????????? | | gg #???????????? | | g g +???????????? | | ############################## w #???????? !?? | | # /// #????? !### ###??????? ! | | """" # /// #?????? """ #?# #????????? | | # / #??????""""" #?# #?????????! | | """" # #????????""" #?# #????????? | | # #?????????? ### ##???????# | | ########"###################+## #???????# | | ! "" ####????# | | *% === T #????# | | =!%=! ## ###### #?? | | ######################/####### ## #?? | | #????????????????# #?###+#### #?? | | ????????????????# #?? ?# #?? | | ????????????????# """""" # """ # #?? | | ????????????????# """""" # """"" # #?? | | #???????????????# """""" # """"" !###### #?? | | #???????????????# """""" # #????# #?? | | ###???????????????# ??# """ !#????# #?? | | ??????????????????# ????? """"" #????# #?? | | ??????????????????###?????????????? #????# #?? | +----------------------------------------------------+ Best States ------------- Heat Dissipation 130 Energy Generation 35 Energy Capacity 1540 Matter Stores 300 Matter Capacity 300 Sight Range 18 Robot Scan Range 16 Terrain Scan Density 10 Jamming Range 14 Armor Coverage 1125 Resistance: TH 30 Point Defense Rating 80 Melee Speed Boost 40 Phase Shifting 5 Evasion (%) 74 Targeting Accuracy 8 Melee Accuracy 13 Recoil Reduction 2 Offensive Hacking 22 Defensive Hacking 36 Authchip Count 1 Trap Extractor Capacity 8 Item Schematics ----------------- Cesium-ion Thruster | -9/Materials | Scanalyzed Flight Unit | -9/Materials | Scanalyzed Ion Engine | -9/Materials | Scanalyzed Scythe | -9/Materials | Scanalyzed Adv. Cooling System | -6/Factory | Hacked Cld. Cesium-ion Thruster | -6/Factory | Hacked Imp. Gravmag System | -6/Factory | Hacked Imp. Kinecellerator | -6/Factory | Hacked Imp. System Shield | -6/Factory | Hacked Power Amplifier | -6/Factory | Hacked Nuclear Pulse Thruster | -6/Factory | Scanalyzed Adv. Trap Extractor | -6/Factory | Scanalyzed Imp. Reaction Control System | -6/Factory | Scanalyzed Fission Core | -6/Factory | Scanalyzed Imp. System Restoration Module | -6/Factory | Scanalyzed System Shield | -6/Factory | Scanalyzed Imp. Point Defense System | -6/Factory | Hacked Tesla Rifle | -6/Factory | Hacked Adv. Sensor Array | -5/Factory | Scanalyzed Jamming Amplifier | -5/Factory | Scanalyzed Cloaking Device | -5/Factory | Scanalyzed Field Propulsion Drive | -5/Factory | Scanalyzed Imp. Datajack | -5/Factory | Hacked Adv. Signal Interpreter | -5/Factory | Scanalyzed Adv. Hacking Suite | -5/Factory | Hacked Robot Schematics ------------------ W-25 Informer | -6/Factory | Hacked Fabricated ------------ Adv. Trap Extractor | x2 | -5/Factory | Authchip Nuclear Pulse Thruster | x2 | -5/Factory Repaired ---------- Cesium-ion Thruster | 8% | -8/Materials Adv. Trap Extractor | 43% | -5/Factory Nuclear Pulse Thruster | 43% | -5/Factory | Broken Power Sword | 11% | -5/Factory Studied --------- Flight Unit | -9/Materials | Hacked Ion Engine | -9/Materials | Hacked Nuclear Pulse Thruster | -6/Factory | Hacked Power Sword | -6/Factory | Hacked Lgt. Angular Momentum Engine | -6/Factory | Hacked Cesium-ion Thruster | -6/Factory | Hacked Imp. Datajack | -5/Factory | Hacked Fission Core | -5/Factory | Hacked Field Propulsion Drive | -5/Factory | Hacked Alien Tech Used ----------------- None Achievements -------------- I Think I Know What's Going On Myspace Prison Break Project G-00 Spot Them First Challenges ------------ None Game ------ Seed DispersalBiomechanicalDriver Manual? 0 Play Time 02:20:03 Cumulative 137.4 hours Start 2026.07.16 @ 00:54:15 End 2026.07.16 @ 19:59:32 Sessions 3 Manual Loads 0 Difficulty Rogue Special Mode None Game No. 112 Rogue 112 Adventurer 0 Explorer 0 Win Type - Total 1 Types 1/0/0/0/0/0/0/0/0/0 Lore% 50 Gallery% 50 Achievement% 38 Wizard Run 0 Options --------- Layout 1 ASCII 0 Keyboard 0 Movement Mouse Keybinds 1 Fullscreen 1 Font 24/Smallcaps Map View 50x35 Zoom Use 0% Tactical HUD 1 Map Filters NONE Filters NONE Steam 1 RUN: afedaa1c-8541-4a6c-83b5-dc4b1ddf953d